bitfinex/quotes_SOLUSD_20240716
["timestamp","ask_amount","ask_price","bid_price","bid_amount"]
[1721098519150,15.65,157.02,156.98,22.403]
[1721098519342,10.0,157.02,156.98,15.929]
[1721098519569,15.65,156.99,156.94,22.403]
[1721098519755,15.65,156.97,156.94,22.403]
[1721098519949,15.65,156.97,156.95,6.3714]
[1721098520140,15.65,156.97,156.94,28.7748]
[1721098520774,6.3695,157.0,156.94,44.7037]
[1721098520980,10.0,157.02,156.95,1.27409069]
[1721098521270,15.65,156.99,156.97,15.9263]
[1721098521467,6.3682,157.03,156.97,22.2965]
[1721098521653,15.65,156.99,156.97,15.9263]
[1721098521953,15.65,156.98,156.95,6.371]
[1721098522747,15.65,156.96,156.94,15.929]
[1721098522941,16.3698,156.99,156.94,15.929]
[1721098523254,6.3694,157.0,156.94,22.3006]
[1721098523574,10.0,157.03,156.96,15.9274]
[1721098523745,15.65,157.0,156.98,6.3702]
[1721098523943,10.0,157.03,156.95,15.65]
[1721098524145,10.0,157.06,157.04,6.3678]
[1721098524363,10.0,157.06,156.98,6.0181]
[1721098524364,15.65,157.05,157.01,22.2913]
[1721098524671,10.0,157.01,156.96,15.65]
[1721098524857,15.65,156.97,156.95,6.3713]
[1721098525058,15.65,156.97,156.93,6.0181]
[1721098525371,15.65,156.98,156.93,21.6681]
[1721098525670,10.0,157.01,156.93,21.6681]
[1721098525853,15.65,156.98,156.93,6.0181]
[1721098526057,15.65,156.98,156.93,21.6681]
[1721098526470,15.65,156.98,156.96,6.3709]
[1721098526666,32.0202,156.98,156.89,6.6257]
[1721098526968,16.3702,156.98,156.9,16.2278]
[1721098527171,6.3708,156.97,156.91,6.3726]
[1721098527379,15.65,156.93,156.91,6.3726]
[1721098528046,15.65,156.93,156.92,6.3726]
[1721098528553,10.0,156.96,156.9,16.2278]
[1721098528750,15.65,156.94,156.92,6.3726]
[1721098528958,15.65,156.94,156.9,16.2278]
[1721098529265,15.65,156.93,156.9,16.2278]
[1721098529850,10.0,156.97,156.92,6.3726]
[1721098530070,15.65,156.94,156.92,6.3726]
[1721098530369,10.0,156.97,156.92,6.3726]
[1721098530541,6.3703,156.98,156.92,6.3726]
[1721098530752,10.0,156.99,156.95,6.3714]
[1721098531271,15.65,156.97,156.95,6.3714]
[1721098531962,16.369,157.01,156.95,6.3714]
[1721098532168,15.65,156.97,156.95,6.3714]
[1721098532370,10.0,157.01,156.96,15.9274]
[1721098532574,10.0,157.01,156.97,6.3704]
[1721098532874,15.65,156.99,156.97,6.3706]
[1721098533550,15.65,156.98,156.92,15.9309]
[1721098533751,15.65,156.95,156.92,15.9309]
[1721098534355,15.65,156.94,156.92,15.9309]
[1721098534765,15.65,156.94,156.92,22.3034]
[1721098535653,15.65,156.94,156.92,15.9309]
[1721098535857,15.65,156.94,156.93,6.3722]
[1721098536279,16.3702,156.99,156.94,6.3717]
[1721098536875,16.3702,156.99,156.93,6.3721]
[1721098537081,10.0,156.96,156.92,15.9309]
[1721098537486,10.0,156.96,156.92,22.3032]
[1721098538489,10.0,156.96,156.93,6.3721]
[1721098538700,10.0,156.98,156.94,6.3717]
[1721098539464,16.64447095,157.0,156.94,6.3717]
[1721098539665,16.64447095,157.0,156.95,6.371]
[1721098541170,10.0,156.98,156.91,15.9324]
[1721098541781,10.0,156.96,156.91,15.9324]
[1721098541967,6.3707,156.97,156.91,15.9324]
[1721098542169,16.3703,156.98,156.92,6.3723]
[1721098542387,10.0,156.98,156.94,6.3718]
[1721098542897,10.0,156.98,156.93,6.3721]
[1721098543280,10.0,156.98,156.94,6.3716]
[1721098544687,10.0,156.98,156.93,15.9297]
[1721098544988,10.0,156.98,156.94,6.3717]
[1721098545668,10.0,156.98,156.93,15.9297]
[1721098545669,16.3702,156.98,156.93,22.3019]
[1721098546567,10.0,156.98,156.93,15.9297]
[1721098546767,10.0,156.96,156.9,16.2278]
[1721098548381,10.0,156.96,156.93,6.372]
[1721098549588,10.0,156.96,156.92,6.3726]
[1721098550103,10.0,156.96,156.93,6.3721]
[1721098550615,10.0,156.98,156.94,15.9295]
[1721098550792,10.0,156.98,156.94,22.3012]
[1721098550990,10.0,156.98,156.94,15.9295]
[1721098551295,10.0,156.98,156.95,6.3714]
[1721098552391,10.0,156.98,156.94,22.3012]
[1721098552802,10.0,156.98,156.94,15.9295]
[1721098553983,10.0,156.96,156.93,6.3721]
[1721098554588,16.3702,156.98,156.93,6.3721]
[1721098555217,10.0,156.96,156.93,6.3721]
[1721098555507,16.3702,156.98,156.93,6.3721]
[1721098555899,16.64547192,156.99,156.95,6.3713]
[1721098556102,10.0,156.99,156.95,6.3713]
[1721098556405,15.62,156.97,156.95,6.3713]
[1721098556697,15.62,156.97,156.91,16.89426324]
[1721098556905,15.62,156.97,156.95,6.3714]
[1721098557197,10.0,156.99,156.95,6.3714]
[1721098557402,15.62,156.97,156.95,6.3714]
[1721098558905,15.62,156.98,156.95,6.3714]
[1721098559289,23.01921045,157.01,156.96,6.3709]
[1721098559604,15.62,156.99,156.95,6.3714]
[1721098559807,15.62,156.98,156.95,6.3714]
[1721098560709,15.62,156.98,156.94,6.3718]
[1721098560899,15.62,156.98,156.95,6.3713]
[1721098561412,15.62,156.98,156.94,6.3717]
[1721098561789,15.62,156.95,156.9,47.7812]
[1721098561994,15.62,156.95,156.93,6.3721]
[1721098562198,15.62,156.96,156.93,6.3721]
[1721098562412,15.62,156.97,156.93,6.3721]
[1721098562786,15.62,156.97,156.92,15.9309]
[1721098562787,15.62,156.95,156.92,15.9309]
[1721098563099,15.62,156.94,156.92,15.9309]
[1721098563298,15.62,156.95,156.92,15.9309]
[1721098564091,6.371,156.97,156.92,22.3034]
[1721098564317,15.62,156.95,156.92,22.3034]
[1721098567818,25.62,156.96,156.93,6.3721]
[1721098568822,16.64640191,156.99,156.92,15.9309]
[1721098569010,16.64640191,156.99,156.95,6.3712]
[1721098569011,15.62,156.97,156.95,6.3712]
[1721098569189,15.62,156.97,156.94,6.3717]
[1721098569712,15.62,156.96,156.92,15.9309]
[1721098569903,15.62,156.96,156.94,6.3717]
[1721098570110,15.62,156.96,156.92,15.9309]
[1721098570608,15.62,156.96,156.94,6.3715]
[1721098570797,6.64640191,156.99,156.95,6.3714]
[1721098571010,15.62,156.97,156.95,6.3714]
[1721098571202,15.62,156.96,156.94,15.9289]
[1721098571718,15.62,156.96,156.9,16.2278]
[1721098571889,15.62,156.95,156.9,31.8478]
[1721098572094,15.62,156.95,156.92,6.3722]
[1721098576403,15.62,156.96,156.93,1.27442384]
[1721098576800,15.62,156.96,156.93,6.372]
[1721098577905,15.62,156.97,156.94,6.3717]
[1721098578501,15.62,156.96,156.93,6.3722]
[1721098578822,10.0,157.0,156.94,6.3717]
[1721098579319,16.3694,157.0,156.94,6.3717]
[1721098579501,6.3698,156.99,156.94,6.3717]
[1721098579701,15.62,156.97,156.94,6.3717]
[1721098580313,6.3698,156.99,156.94,6.3717]
[1721098580497,15.62,156.97,156.94,6.3717]
[1721098580712,16.3698,156.99,156.94,6.3717]
[1721098581015,15.62,156.97,156.94,6.3717]
[1721098581825,16.3698,156.99,156.94,6.3717]
[1721098582024,15.62,156.96,156.94,6.3717]
[1721098583401,15.62,156.96,156.92,17.20507736]
[1721098583917,15.62,156.96,156.93,6.3719]
[1721098584628,15.62,156.95,156.93,6.3719]
[1721098584927,15.62,156.95,156.92,15.9308]
[1721098585227,15.62,156.95,156.92,22.3033]
[1721098585430,15.62,156.95,156.93,6.3721]
[1721098585817,15.62,156.96,156.93,6.3721]
[1721098586235,6.65534667,156.99,156.93,1.27440715]
[1721098586407,15.62,156.97,156.93,1.27440715]
[1721098586608,10.0,156.98,156.93,1.27440715]
[1721098586812,15.62,156.96,156.91,1.27428467]
[1721098589117,15.62,156.95,156.9,16.2278]
[1721098589434,15.62,156.95,156.9,17.50225812]
[1721098589939,10.0,156.99,156.92,15.62]
[1721098590138,15.62,156.97,156.91,15.62]
[1721098590312,15.62,156.96,156.92,46.27429568]
[1721098590619,15.62,156.96,156.92,1.27435349]
[1721098590815,15.62,156.95,156.92,1.27435349]
[1721098591011,15.62,156.95,156.91,46.27431833]
[1721098593137,10.0,156.99,156.91,46.27431833]
[1721098593324,15.62,156.97,156.92,15.62]
[1721098593532,15.62,156.97,156.93,1.27427946]
[1721098594412,15.62,156.97,156.92,15.62]
[1721098594616,15.62,156.97,156.9,16.2278]
[1721098594810,15.62,156.96,156.9,16.2278]
[1721098595114,15.62,156.95,156.9,33.12224861]
[1721098595311,10.0,156.99,156.9,17.50224861]
[1721098595520,16.65458171,157.01,156.93,15.62]
[1721098595922,15.62,156.99,156.94,17.54680513]
[1721098596129,6.65458171,157.01,156.94,17.54680513]
[1721098596445,15.62,156.99,156.94,16.2727]
[1721098597340,14.609373,156.99,156.94,16.2727]
[1721098597643,6.65458171,157.01,156.94,17.54681296]
[1721098597819,15.62,156.99,156.94,38.2204]
[1721098598018,6.65458171,157.01,156.95,46.27409623]
[1721098598239,15.62,156.98,156.94,22.6004]
[1721098599133,10.0,157.0,156.94,22.6004]
[1721098599134,15.62,156.97,156.94,22.6004]
[1721098601642,15.62,156.95,156.9,39.49484821]
[1721098601942,15.62,156.95,156.9,38.2204]
[1721098602139,15.62,156.95,156.91,1.27392497]
[1721098602342,15.62,156.95,156.9,22.6004]
[1721098602525,15.62,156.94,156.9,22.6004]
[1721098602721,10.0,156.97,156.91,0.33645646]
[1721098602950,15.62,156.94,156.9,22.6004]
[1721098603129,15.62,156.94,156.9,22.93672779]
[1721098603839,10.0,156.97,156.91,1.27447048]
[1721098604158,15.62,156.94,156.91,1.27447048]
[1721098604731,10.0,156.99,156.92,1.27425477]
[1721098605141,15.62,156.96,156.92,1.27425477]
[1721098605339,15.62,156.95,156.92,1.27425477]
[1721098605831,15.62,156.95,156.91,1.27436923]
[1721098607156,10.0,156.99,156.92,0.80166577]
[1721098607329,15.62,156.97,156.93,0.80161476]
[1721098607529,10.0,156.99,156.93,0.80161476]
[1721098607747,15.62,156.97,156.93,0.80161476]
[1721098607963,10.0,156.99,156.93,1.27428704]
[1721098608126,15.62,156.97,156.93,1.27428704]
[1721098608841,15.62,156.98,156.93,1.27428704]
[1721098609264,10.0,156.99,156.93,1.27428704]
[1721098609436,15.62,156.98,156.93,46.27428704]
[1721098610035,15.62,156.98,156.94,15.0958]
[1721098610347,25.62,156.99,156.94,15.0958]
[1721098611768,10.0,156.99,156.94,15.0958]
[1721098612072,25.62,156.99,156.94,15.0958]
[1721098612378,15.62,156.99,156.95,6.1625]
[1721098612559,30.23680224,157.02,156.96,60.62]
[1721098612875,15.62,157.01,156.96,60.62]
[1721098613052,23.5752229,157.02,156.97,15.62]
[1721098613369,23.5752229,157.02,156.98,1.27381776]
[1721098613675,15.62,157.04,156.99,16.89374992]
[1721098613867,10.0,157.08,157.0,16.1418]
[1721098614046,15.62,157.05,157.0,31.7618]
[1721098614252,16.66244164,157.08,157.0,31.7618]
[1721098614458,15.62,157.05,157.0,31.7618]
[1721098614663,16.66244164,157.08,157.01,22.91018109]
[1721098614868,16.66244164,157.08,157.01,21.6366]
[1721098615066,15.62,157.06,157.01,21.6366]
[1721098615655,6.66244164,157.08,157.01,21.6366]
[1721098615858,6.66244164,157.08,157.02,61.89346663]
[1721098616055,15.62,157.07,157.02,61.89346663]
[1721098616468,15.62,157.07,157.02,60.62]
[1721098616671,15.04968089,157.09,157.03,1.27346732]
[1721098616985,15.62,157.08,157.03,16.89346732]
[1721098617150,15.04968089,157.09,157.04,16.89340118]
[1721098617350,15.04968089,157.09,157.05,1.27326173]
[1721098617954,15.04968089,157.09,157.05,16.89326173]
[1721098618255,30.66968089,157.09,157.04,15.62]
[1721098618772,15.04968089,157.09,157.02,60.62]
[1721098618948,15.62,157.07,157.02,45.0]
[1721098619148,15.62,157.06,157.01,6.0166]
[1721098619347,15.62,157.05,157.01,6.0166]
[1721098619674,10.0,157.07,157.01,6.0166]
[1721098620371,15.62,157.02,157.0,16.1418]
[1721098620551,15.62,157.01,157.0,16.1418]
[1721098621353,10.0,157.03,157.0,16.1418]
[1721098621548,15.62,157.01,157.0,16.1418]
[1721098621750,15.62,157.01,156.95,15.8454]
[1721098621751,25.62,157.01,156.95,15.8454]
[1721098621975,15.62,156.98,156.95,15.8454]
[1721098622161,15.62,156.98,156.97,6.3706]
[1721098622356,15.62,156.98,156.96,6.371]
[1721098623272,15.62,156.98,156.97,6.3706]
[1721098623476,10.0,157.01,156.97,6.3706]
[1721098623782,15.62,156.98,156.97,6.3706]
[1721098624471,10.0,157.01,156.97,6.3706]
[1721098624682,15.62,156.98,156.97,6.3706]
[1721098625456,16.3682,157.03,156.97,6.3706]
[1721098625663,15.62,156.99,156.98,6.3701]
[1721098625873,15.62,157.0,156.98,6.3701]
[1721098626176,15.62,156.99,156.98,6.3701]
[1721098626566,15.62,156.99,156.96,6.3707]
[1721098626769,15.62,156.99,156.95,15.8454]
[1721098627162,15.62,156.99,156.97,6.3705]
[1721098627660,16.3682,157.03,156.98,6.3702]
[1721098627881,15.62,157.0,156.98,6.3702]
[1721098628187,10.0,157.05,157.0,6.3692]
[1721098628361,15.62,157.02,157.0,6.3692]
[1721098635173,15.62,157.02,157.01,6.3689]
[1721098635377,15.62,157.02,156.98,12.4538]
[1721098635581,15.62,157.01,156.99,6.3695]
[1721098636478,15.62,157.01,157.0,6.3694]
[1721098636678,15.62,157.01,156.99,6.3698]
[1721098636989,15.62,157.0,156.99,6.3698]
[1721098637198,10.0,157.03,156.98,6.3701]
[1721098637371,10.0,157.03,156.95,15.8454]
[1721098637572,10.0,157.03,156.95,31.4654]
[1721098637768,10.0,157.03,156.95,15.8454]
[1721098638191,10.0,157.03,156.96,45.0]
[1721098638376,10.0,157.03,157.0,6.3693]
[1721098639299,10.0,157.03,157.01,6.3689]
[1721098639498,15.62,157.02,157.01,6.3689]
[1721098640002,10.0,157.03,157.01,6.3689]
[1721098640302,15.62,157.02,157.01,6.3689]
[1721098640673,10.0,157.05,157.01,6.3689]
[1721098640904,10.0,157.05,157.02,6.3686]
[1721098640905,15.62,157.03,157.02,6.3686]
[1721098641296,15.62,157.03,157.01,6.3689]
[1721098641509,15.62,157.03,157.02,6.3686]
[1721098641707,15.62,157.03,157.01,6.3689]
[1721098642398,10.0,157.05,156.97,15.62]
[1721098642597,15.62,157.03,156.98,45.0]
[1721098642786,15.62,157.04,156.98,60.62]
[1721098643589,16.66193461,157.07,157.03,6.3682]
[1721098643902,23.02853461,157.07,157.01,6.3686]
[1721098644082,16.66193461,157.07,157.05,6.3672]
[1721098644286,10.0,157.09,157.02,15.62]
[1721098644605,15.62,157.06,157.04,6.3677]
[1721098644811,15.62,157.05,157.02,6.3682]
[1721098645785,10.0,157.09,157.03,16.0157]
[1721098645989,15.62,157.06,157.03,16.0157]
[1721098646392,15.62,157.06,157.04,6.3676]
[1721098646599,15.62,157.06,157.05,6.3673]
[1721098646806,15.62,157.06,157.03,22.3835]
[1721098646996,15.62,157.05,157.03,22.3835]
[1721098647512,15.62,157.05,157.04,6.3678]
[1721098648413,15.62,157.06,157.04,6.3678]
[1721098648791,15.62,157.05,157.04,6.3678]
[1721098649297,15.62,157.06,157.05,6.3673]
[1721098650600,10.0,157.09,157.05,6.3673]
[1721098650816,15.62,157.08,157.03,31.6357]
[1721098651019,13.30779962,157.1,157.08,6.3661]
[1721098651318,15.62,157.09,157.04,16.89339563]
[1721098651832,15.62,157.08,157.03,16.0157]
[1721098652020,15.62,157.07,157.03,16.0157]
[1721098652189,10.0,157.09,157.03,16.0157]
[1721098652390,25.62,157.07,157.05,6.3672]
[1721098652590,15.62,157.06,157.03,16.0157]
[1721098652791,15.62,157.06,157.01,6.369]
[1721098652792,15.62,157.04,157.01,6.369]
[1721098653011,10.0,157.05,157.0,6.3693]
[1721098653012,15.62,157.02,157.0,6.3693]
[1721098653319,10.0,157.03,157.01,6.369]
[1721098653611,15.62,157.02,157.0,6.3693]
[1721098653917,15.62,157.01,156.99,22.6738]
[1721098654123,15.62,157.01,157.0,6.3694]
[1721098654620,15.62,157.02,157.01,6.3689]
[1721098654793,15.62,157.02,157.0,6.3693]
[1721098655919,15.62,157.01,157.0,6.3693]
[1721098656096,15.62,157.01,156.99,16.304]
[1721098656300,10.0,157.03,156.95,16.4975]
[1721098656301,15.62,157.0,156.95,16.4975]
[1721098656518,10.0,157.03,156.99,6.3696]
[1721098656698,15.62,157.0,156.95,16.4975]
[1721098656901,15.62,156.99,156.95,16.4975]
[1721098657101,10.0,157.01,156.95,16.4975]
[1721098657315,15.62,156.99,156.98,6.3702]
[1721098657901,10.0,157.01,156.95,16.4975]
[1721098658107,25.62,157.01,156.95,32.1175]
[1721098658326,23.03072669,157.06,157.0,6.3694]
[1721098658327,10.0,157.03,157.0,6.3694]
[1721098658627,15.62,157.01,157.0,6.3694]
[1721098659018,10.0,157.05,157.02,6.3682]
[1721098659203,6.66342669,157.06,156.98,15.62]
[1721098659407,10.0,157.07,157.06,6.3669]
[1721098659622,25.62,157.07,157.05,6.3673]
[1721098659931,15.62,157.06,156.99,15.62]
[1721098660223,10.0,157.07,157.02,15.62]
[1721098660224,15.62,157.07,157.02,15.62]
[1721098660432,15.62,157.08,157.06,6.3669]
[1721098660635,15.62,157.08,157.07,6.3665]
[1721098661230,10.0,157.11,157.07,6.3665]
[1721098661429,15.62,157.08,157.07,6.3665]
[1721098661615,15.62,157.08,157.06,6.3669]
[1721098662321,7.4748221,157.12,157.09,6.3655]
[1721098662628,10.8139,157.12,157.05,15.62]
[1721098662824,15.62,157.1,157.08,6.3661]
[1721098663024,15.62,157.11,157.09,6.3657]
[1721098663241,15.62,157.11,157.06,1.27323936]
[1721098663423,15.62,157.1,157.06,1.27323936]
[1721098663627,15.62,157.1,157.08,6.366]
[1721098663838,15.62,157.11,157.08,6.366]
[1721098664227,0.8139,157.12,157.08,6.366]
[1721098664432,10.8139,157.12,157.08,6.366]
[1721098664629,10.8139,157.12,157.02,1.27319931]
[1721098664849,17.1784,157.12,157.06,6.3666]
[1721098665520,17.1784,157.12,157.01,22.1345]
[1721098665725,10.0,157.1,157.05,6.3672]
[1721098666245,10.0,157.1,157.06,6.3668]
[1721098666657,10.0,157.1,157.01,22.1345]
[1721098666658,10.0,157.1,157.07,6.3664]
[1721098667151,10.0,157.1,157.05,6.367]
[1721098667331,10.0,157.08,157.04,6.3675]
[1721098667530,10.0,157.08,157.05,6.3673]
[1721098668853,10.0,157.08,157.04,6.3677]
[1721098669152,10.0,157.08,157.05,6.3673]
[1721098669721,10.0,157.08,156.95,31.19]
[1721098669927,10.0,157.08,156.8,38.23851026]
[1721098669928,10.0,157.04,157.01,6.3686]
[1721098670345,10.0,157.04,157.0,6.3693]
[1721098670930,10.0,157.04,157.01,6.3688]
[1721098671144,41.19,157.07,156.97,16.3789]
[1721098671343,41.19,157.07,157.03,6.3681]
[1721098671540,41.19,157.07,156.97,16.3789]
[1721098671763,10.0,157.07,156.98,45.0]
[1721098671937,10.0,157.07,157.04,6.3675]
[1721098672128,10.0,157.07,157.03,6.3681]
[1721098672935,10.0,157.07,157.04,6.3677]
[1721098674734,10.0,157.07,157.03,6.3681]
[1721098675154,10.0,157.07,157.02,6.3685]
[1721098675853,10.0,157.05,157.01,6.3689]
[1721098676756,10.0,157.03,156.97,16.3789]
[1721098677633,10.0,157.03,156.99,6.3696]
[1721098677860,10.0,157.01,156.93,16.3094]
[1721098678060,16.3691,157.01,156.96,6.3708]
[1721098678236,10.0,157.01,156.97,6.3705]
[1721098678837,10.0,157.01,156.96,6.371]
[1721098679155,16.3691,157.01,156.95,6.3713]
[1721098679349,10.0,156.99,156.95,6.3713]
[1721098679746,10.0,156.99,156.96,6.3709]
[1721098680046,16.3698,156.99,156.93,16.3094]
[1721098680848,10.0,156.97,156.92,6.3722]
[1721098681045,16.3706,156.97,156.92,6.3722]
[1721098681367,10.0,156.97,156.92,6.3722]
[1721098681882,6.3702,156.98,156.91,6.3726]
[1721098681883,10.0,156.96,156.91,6.3726]
[1721098682042,10.0,156.96,156.89,1.27448418]
[1721098682364,10.0,156.98,156.94,15.9292]
[1721098682740,10.0,156.98,156.95,6.3714]
[1721098683142,41.19,157.01,156.96,15.9266]
[1721098683342,41.19,157.01,156.96,22.2972]
[1721098683557,41.19,157.01,156.96,15.9266]
[1721098683753,41.19,157.01,156.96,22.2973]
[1721098683963,41.19,157.01,156.97,6.3706]
[1721098684150,41.19,157.01,156.96,15.9266]
[1721098684470,6.66498676,157.01,156.96,15.9266]
[1721098684663,10.0,157.03,156.96,15.9266]
[1721098684841,10.0,157.01,156.96,15.9266]
[1721098685159,10.0,157.01,156.96,22.2975]
[1721098685464,10.0,157.03,156.97,6.3702]
[1721098685673,16.3683,157.03,156.97,6.3702]
[1721098686091,6.3683,157.03,156.97,6.3702]
[1721098686261,16.3683,157.03,156.97,6.3702]
[1721098686583,10.0,157.0,156.96,15.9266]
[1721098687093,10.0,157.02,156.97,6.3705]
[1721098687659,6.3686,157.03,156.98,6.37]
[1721098687880,47.85415771,157.04,156.98,6.37]
[1721098688079,47.85415771,157.04,156.99,6.3696]
[1721098688281,54.22195771,157.04,156.99,6.3696]
[1721098688790,16.3686,157.02,156.96,15.9266]
[1721098689669,16.3695,157.0,156.96,15.9266]
[1721098689868,16.3689,157.02,156.96,15.9266]
[1721098690069,16.3689,157.02,156.97,6.3704]
[1721098690285,54.22195771,157.04,156.96,15.9266]
[1721098690480,47.85415771,157.04,156.95,23.0331]
[1721098690790,47.85415771,157.04,156.99,6.3697]
[1721098691082,10.0,157.02,156.95,23.0331]
[1721098691284,10.0,157.02,156.97,6.3703]
[1721098691465,10.0,157.02,156.98,6.37]
[1721098691789,10.0,157.02,156.96,6.3707]
[1721098692173,37.85415771,157.04,156.96,6.3707]
[1721098692174,10.0,157.0,156.96,6.3707]
[1721098693970,10.0,157.0,156.95,6.3714]
[1721098694680,10.0,156.98,156.95,6.3714]
[1721098694872,10.0,157.0,156.96,6.3709]
[1721098695384,10.0,157.0,156.91,22.1758]
[1721098695588,16.3695,157.0,156.95,6.3714]
[1721098695769,10.0,157.0,156.96,6.371]
[1721098696085,10.0,156.98,156.95,6.3713]
[1721098696293,10.0,156.98,156.94,6.3718]
[1721098697197,10.0,156.98,156.95,6.3714]
[1721098698061,16.3711,156.96,156.86,15.171]
[1721098698261,10.0,156.96,156.86,15.171]
[1721098698482,41.19,156.98,156.86,15.171]
[1721098698686,41.19,156.98,156.94,6.3714]
[1721098699282,41.19,156.98,156.93,6.3721]
[1721098700292,41.19,156.98,156.94,6.3717]
[1721098700492,6.37,156.99,156.94,6.3717]
[1721098700873,10.0,157.0,156.87,1.27436727]
[1721098701067,10.0,157.0,156.87,20.0]
[1721098701268,10.0,157.0,156.88,45.0]
[1721098701581,16.3695,157.0,156.89,20.0]
[1721098701787,10.0,156.97,156.89,20.0]
[1721098701968,10.0,156.97,156.92,6.3723]
[1721098702170,10.0,156.97,156.9,6.3731]
[1721098702398,16.3706,156.97,156.91,6.3729]
[1721098702696,16.3706,156.97,156.92,6.3724]
[1721098703078,10.0,156.97,156.87,20.0]
[1721098703381,10.0,156.97,156.92,6.3722]
[1721098703780,6.3713,156.96,156.91,6.3728]
[1721098704073,10.0,156.95,156.91,6.3728]
[1721098704293,10.0,156.93,156.91,6.3728]
[1721098704671,10.0,156.93,156.9,6.3733]
[1721098705572,10.0,156.95,156.91,6.3729]
[1721098706196,10.0,156.95,156.92,6.3726]
[1721098706673,10.0,156.95,156.9,6.3731]
[1721098706868,10.0,156.95,156.89,15.9344]
[1721098707100,10.0,156.95,156.92,6.3726]
[1721098707392,10.0,156.95,156.9,6.3731]
[1721098707582,10.0,156.93,156.9,6.3731]
[1721098707784,10.0,156.93,156.91,6.373]
[1721098708306,15.63,156.93,156.92,6.3726]
[1721098708603,16.66730536,156.97,156.93,6.3721]
[1721098709072,16.66730536,156.97,156.95,6.3713]
[1721098709274,15.63,156.96,156.94,6.3718]
[1721098709476,15.63,156.95,156.94,6.3718]
[1721098709793,6.66603454,157.0,156.96,6.3706]
[1721098709985,15.63,156.98,156.96,6.3706]
[1721098710172,15.63,156.98,156.97,6.3706]
[1721098710371,15.63,156.98,156.96,6.3709]
[1721098711091,10.0,157.01,156.96,6.3709]
[1721098711293,15.63,156.98,156.96,6.3709]
[1721098711601,15.63,156.97,156.83,19.16]
[1721098711921,15.63,156.95,156.93,6.3721]
[1721098712193,10.0,156.96,156.92,6.3726]
[1721098713494,10.0,156.96,156.92,22.304]
[1721098713688,10.0,156.96,156.92,15.9314]
[1721098713895,10.0,156.96,156.92,22.3038]
[1721098714099,10.0,156.98,156.92,15.9314]
[1721098714278,10.0,156.98,156.95,6.371]
[1721098714484,41.25,157.0,156.95,6.371]
[1721098714688,10.0,156.98,156.95,6.371]
[1721098715001,10.0,156.98,156.94,22.3006]
[1721098715196,10.0,156.96,156.94,22.3006]
[1721098715384,10.0,156.96,156.93,6.3722]
[1721098715704,10.0,156.96,156.94,6.3718]
[1721098715916,10.0,156.96,156.93,6.3721]
[1721098716100,10.0,156.98,156.94,6.3716]